lending/lending_fUSD_20240622
["ID","MTS","AMOUNT","RATE_DAILY","PERIOD"]
[330135387,1719034240534,-2394.40044606,0.000139,2]
[330135388,1719034240546,-7118.5869,0.000139,2]
[330135389,1719034240558,-7194.6765,0.000139,2]
[330135390,1719034240599,-683.52715314,0.000139,2]
[330135391,1719034240612,-250917.29739984,0.00014,2]
[330135403,1719034243194,-312.48335951,0.000138,2]
[330135404,1719034243205,-29.81664049,0.00014,2]
[330135405,1719034243218,-304692.91111068,0.00014,2]
[330135406,1719034243478,-4859.22515269,0.00014,2]
[330135407,1719034243492,-2858.86688685,0.00014,2]
[330135408,1719034243505,-1186.64880089,0.00014,2]
[330135409,1719034243534,-6299.402726,0.00014,2]
[330135410,1719034243548,-812.31370672,0.00014,2]
[330135411,1719034243562,-1333.60642354,0.00014,2]
[330135412,1719034243619,-1170.0499998,0.00014,2]
[330135413,1719034243632,-1319.35858515,0.00014,2]
[330135414,1719034243646,-3792.97760677,0.00014,2]
[330135415,1719034243659,-3167.198499,0.00014,2]
[330135416,1719034243700,-453.999994,0.00014,2]
[330135417,1719034243715,-1803.24107835,0.00014,2]
[330135418,1719034244356,-378.42145,0.00014,2]
[330135419,1719034244492,-545690.36059457,0.00014,2]
[330135420,1719034244532,-1900.24289999,0.00014,2]
[330135421,1719034244573,-13621.33321001,0.00014,2]
[330135422,1719034244586,-845.50957208,0.00014,2]
[330135423,1719034244599,-1493.92083092,0.00014,2]
[330135425,1719034245908,-687.23661666,0.00014,2]
[330135426,1719034245920,-8539.06885841,0.00014,2]
[330135427,1719034245931,-8922.83961422,0.00014,2]
[330135428,1719034245942,-3721.56168088,0.00014,2]
[330135429,1719034245954,-254.86173603,0.00014,2]
[330135430,1719034246031,-325.95661418,0.00014,2]
[330135431,1719034246043,-1913.36843688,0.00014,2]
[330135432,1719034246055,-569.64,0.00014,2]
[330135433,1719034246071,-17849.13358637,0.00014,2]
[330135434,1719034246084,-4952.48764898,0.00014,2]
[330135435,1719034246147,-468.68885309,0.00014,2]
[330135436,1719034246160,-21615.85428932,0.00014,2]
[330135437,1719034246174,-2628.92817749,0.00014,2]
[330135438,1719034246282,-15700.756119,0.00014,2]
[330135439,1719034246295,-714.2364726,0.00014,2]
[330135442,1719034453729,943.12237175,0.00011,2]
[330135443,1719034471561,2778.91528335,0.00025,30]
[330135448,1719034601309,214.97639723,0.00025,120]
[330135451,1719034640804,634.25031954,0.00025,60]
[330135452,1719034676939,151.91,0.00018849,30]
[330135455,1719034977753,500.0,0.000245,30]
[330135456,1719035048132,500.0,0.00025,30]
[330135457,1719035056368,232.45,0.00025477,120]
[330135458,1719035184473,609.37,0.00010608,2]
[330135465,1719035218203,18657.06629177,0.00010608,2]
[330135466,1719035218228,6027.3231277,0.00010608,2]
[330135467,1719035227573,151.91,0.00018849,30]
[330135485,1719035433164,-1833.35163994,0.000112,2]
[330135486,1719035433176,-500.0,0.000112,2]
[330135487,1719035433275,-125.15764529,0.000112,2]
[330135488,1719035433284,-150.0,0.00012299,2]
[330135489,1719035433293,-5973.56399917,0.000123,2]
[330135490,1719035433383,-1933.2137905,0.000123,2]
[330135491,1719035433394,-6204.13613392,0.000123,2]
[330135492,1719035433405,-76828.43851865,0.000123,2]
[330135493,1719035433414,-2393.49841235,0.00012361,2]
[330135494,1719035433423,-1000.0,0.00012433,2]
[330135495,1719035433432,-174.29,0.00012462,2]
[330135496,1719035433441,-170.43,0.00012494,2]
[330135497,1719035433450,-102.45131457,0.0001251,2]
[330135498,1719035433495,-481.87186993,0.0001251,2]
[330135499,1719035433505,-250.0,0.00012526,2]
[330135500,1719035433514,-150.0,0.00012548,2]
[330135501,1719035433523,-200.0,0.00012569,2]
[330135502,1719035433533,-150.0,0.00012578,2]
[330135503,1719035433542,-245.07278069,0.00012578,2]
[330135504,1719035433553,-75.10721931,0.00012578,2]
[330135505,1719035433563,-441.41,0.00012588,2]
[330135506,1719035433574,-6536.15146338,0.00012588,2]
[330135507,1719035433585,-522.67520343,0.00012588,2]
[330135570,1719035438054,-500.0,0.00012577,2]
[330135571,1719035438065,-212.29463692,0.00012588,2]
[330135572,1719035438079,-580.79166872,0.00012588,2]
[330135573,1719035438093,-742.11629914,0.00012588,2]
[330135574,1719035438107,-277.0527081,0.00012588,2]
[330135575,1719035438120,-2358.90802031,0.00012588,2]
[330135576,1719035438133,-479.41956367,0.00012753,2]
[330135577,1719035438150,-20.57043633,0.00012753,2]
[330135578,1719035438161,-609.37,0.00012872,2]
[330135579,1719035438172,-500.0,0.00013,2]
[330135580,1719035438184,-268.88767222,0.00013,2]
[330135581,1719035438198,-31.10232778,0.00013,2]
[330135582,1719035438209,-179.57,0.0001321,2]
[330135583,1719035438221,-179.57,0.00013246,2]
[330135584,1719035438232,-179.57,0.00013282,2]
[330135585,1719035438243,-179.57,0.00013319,2]
[330135586,1719035438254,-179.57,0.00013355,2]
[330135587,1719035438265,-250.0,0.00013367,2]
[330135588,1719035438276,-179.57,0.00013391,2]
[330135589,1719035438286,-179.57,0.00013427,2]
[330135590,1719035438297,-179.57,0.00013463,2]
[330135592,1719035438308,-179.57,0.000135,2]
[330135593,1719035438319,-500.0,0.000135,3]
[330135596,1719035438330,-2021.54,0.00013504,2]
[330135598,1719035438342,-196.0,0.00013529,2]
[330135600,1719035438353,-179.57,0.00013536,2]
[330135602,1719035438364,-179.57,0.00013572,2]
[330135604,1719035438375,-179.57,0.00013608,2]
[330135606,1719035438388,-2500.0,0.0001362,2]
[330135609,1719035438399,-179.57,0.00013645,2]
[330135611,1719035438410,-179.57,0.00013681,2]
[330135613,1719035438421,-299.61,0.00013699,2]
[330135615,1719035438432,-200.0,0.00013699,2]
[330135617,1719035438443,-2322.18,0.00013699,2]
[330135620,1719035438454,-249.81,0.00013699,2]
[330135622,1719035438465,-2827.67903621,0.00013699,2]
[330135624,1719035438476,-68178.60777625,0.000137,2]
[330135629,1719035438509,-951.56347799,0.000137,2]
[330135631,1719035438521,-429.75149219,0.000137,2]
[330135634,1719035438538,-4562.56537436,0.000137,2]
[330135636,1719035438552,-471.83724849,0.000137,2]
[330135638,1719035438566,-10651.93547108,0.000137,2]
[330135644,1719035438605,-1464.43317001,0.000137,2]
[330135646,1719035438619,-4210.69798963,0.000137,2]
[330135648,1719035438630,-312.38331428,0.000137,2]
[330135650,1719035438641,-179.57,0.00013717,2]
[330135653,1719035438653,-179.57,0.00013753,2]
[330135655,1719035438664,-29.44043343,0.00013789,2]
[330135657,1719035438677,-150.12956657,0.00013789,2]
[330135659,1719035438688,-263.95506763,0.0001379,2]
[330135660,1719035438701,-299.58797889,0.0001379,2]
[330135661,1719035438714,-2532.81256834,0.0001379,2]
[330135662,1719035438728,-1157.23003084,0.0001379,2]
[330135663,1719035438739,-1654.56045081,0.00013799,2]
[330135664,1719035438751,-3305.23826772,0.000138,2]
[330135665,1719035438764,-3733.84704,0.000138,2]
[330135698,1719035440408,-286.313,0.000138,2]
[330135699,1719035440422,-884.51579087,0.000138,2]
[330135708,1719035441139,-89128.98850141,0.000138,2]
[330135709,1719035441164,-78332.6086084,0.000138,2]
[330135711,1719035441237,-1121.2213578,0.000138,2]
[330135712,1719035441249,-4031.09087575,0.000138,2]
[330135713,1719035441261,-1464.8435262,0.000138,2]
[330135714,1719035441272,-13017.63549452,0.000138,2]
[330135725,1719035443293,-24526.4133895,0.000138,2]
[330135726,1719035443304,-267.14573897,0.000138,2]
[330135727,1719035443316,-461.94823407,0.000138,2]
[330135728,1719035443327,-344.10978337,0.000138,2]
[330135729,1719035443361,-391.189999,0.000138,2]
[330135730,1719035443372,-1500.0,0.000138,2]
[330135731,1719035443385,-686.6132303,0.000138,2]
[330135732,1719035443395,-906.17357973,0.000138,2]
[330135733,1719035443407,-758.002,0.000138,2]
[330135734,1719035443462,-22.32474721,0.000138,2]
[330135735,1719035443474,-503.99410468,0.000138,2]
[330135736,1719035443488,-3845.64279638,0.000138,2]
[330135737,1719035443501,-4932.07317659,0.000138,2]
[330135738,1719035443533,-837.77,0.000138,2]
[330135739,1719035443545,-107049.19935753,0.000138,2]
[330135740,1719035443554,-1000.0,0.000138,2]
[330135741,1719035443565,-179.57,0.00013826,2]
[330135742,1719035443576,-2718.80491,0.0001386,2]
[330135743,1719035443585,-179.57,0.00013862,2]
[330135744,1719035443596,-179.57,0.00013898,2]
[330135745,1719035443607,-852.36,0.000139,2]
[330135746,1719035443616,-422.51,0.000139,2]
[330135747,1719035443626,-175.62575415,0.000139,2]
[330135748,1719035443635,-247.18057338,0.000139,2]
[330135749,1719035443644,-2398.14522388,0.000139,2]
[330135750,1719035443653,-1000.0,0.00013987,2]
[330135751,1719035443663,-326.18369595,0.00013999,2]
[330135752,1719035443672,-428961.64107968,0.00014,2]
[330135754,1719035443683,-463.45088523,0.00014,2]
[330135757,1719035443723,-136117.38936662,0.00014,2]
[330135779,1719035446202,-793.35168184,0.00014,2]
[330135780,1719035446216,-674.79429573,0.00014,2]
[330135781,1719035446228,-1577.35464003,0.00014,2]
[330135782,1719035446241,-802.21012735,0.00014,2]
[330135783,1719035446496,-677.99999947,0.00014,2]
[330135784,1719035446508,-531.0,0.00014,2]
[330135785,1719035446519,-791.69949259,0.00014,2]
[330135786,1719035446530,-13452.09708928,0.00014,2]
[330135787,1719035446542,-1468.61436009,0.00014,2]
[330135788,1719035446553,-9554.179056,0.00014,2]
[330135789,1719035446564,-22304.1566942,0.00014,2]
[330135790,1719035446575,-27648.882471,0.00014,2]
[330135791,1719035446586,-5573.88035066,0.00014,2]
[330135792,1719035446597,-489.02686996,0.00014,2]
[330135793,1719035446608,-2071.00287212,0.00014,2]
[330135794,1719035446716,-3965.93903504,0.00014,2]
[330135795,1719035446728,-20942.64526691,0.00014,2]
[330135796,1719035446739,-4566.70269945,0.00014,2]
[330135797,1719035446750,-5762.25570456,0.00014,2]
[330135798,1719035446761,-1133.82762388,0.00014,2]
[330135799,1719035446772,-42438.88335231,0.00014,2]
[330135800,1719035446784,-1757.99426359,0.00014,2]
[330135801,1719035446795,-1258.7533834,0.00014,2]
[330135802,1719035446807,-383.87296915,0.00014,2]
[330135803,1719035446819,-1018.3,0.00014,2]
[330135804,1719035446872,-8336.80839778,0.00014,2]
[330135805,1719035446883,-990.17860319,0.00014,2]
[330135806,1719035446895,-783.37200756,0.00014,2]
[330135807,1719035446906,-2306.87815915,0.00014,2]
[330135808,1719035446917,-1014.75723147,0.00014,2]
[330135809,1719035446928,-3821.0,0.00014,2]
[330135810,1719035446966,-1309.64497323,0.00014,2]
[330135811,1719035446977,-1458.83968283,0.00014,2]
[330135812,1719035446989,-409.14193754,0.00014,2]
[330135813,1719035447000,-4666.27831828,0.00014,2]
[330135814,1719035447011,-387.53754655,0.00014,2]
[330135815,1719035447023,-794.89183922,0.00014,2]
[330135816,1719035447035,-4788.38967729,0.00014,2]
[330135817,1719035447046,-5882.61331955,0.00014,2]
[330135818,1719035447057,-295.25514135,0.00014,2]
[330135822,1719035776169,151.91,0.00018849,30]
[330135824,1719035855672,590.93,0.00011014,2]
[330135825,1719035888636,191.33,0.00012849,2]
[330135826,1719035889059,191.33,0.00012852,2]
[330135827,1719035890514,191.33,0.00012855,2]
[330135828,1719035890817,191.33,0.00012859,2]
[330135829,1719035891106,191.33,0.00012862,2]
[330135830,1719035891314,191.33,0.00012865,2]
[330135831,1719035891519,191.33,0.00012869,2]
[330135832,1719035891708,191.33,0.00012872,2]
[330135833,1719035892114,191.33,0.00012876,2]
[330135834,1719035892323,191.33,0.00012879,2]
[330135835,1719035892526,191.33,0.00012882,2]
[330135836,1719035893331,191.33,0.00012886,2]
[330135837,1719035893386,191.33,0.00012889,2]
[330135838,1719035893764,191.33,0.00012892,2]
[330135839,1719035893825,191.33,0.00012896,2]
[330135840,1719035893912,191.33,0.00012899,2]
[330135841,1719035893987,191.33,0.00012902,2]
[330135842,1719035894072,191.33,0.00012906,2]
[330135843,1719035894234,191.33,0.00012909,2]
[330135844,1719035894424,191.33,0.00012913,2]
[330135845,1719035914871,250.0,0.00012835,2]
[330135846,1719035943008,9932.47,0.00012913,2]
[330135849,1719036028914,-1208.0,0.00025876,30]
[330135850,1719036028942,-200.0,0.00026094,120]
[330135851,1719036028969,-200.0,0.00026527,120]
[330135852,1719036028994,-200.0,0.0002696,120]
[330135853,1719036029021,-200.0,0.00027394,120]
[330135854,1719036029047,-237.75,0.00027397,30]
[330135855,1719036029072,-200.0,0.00027397,60]
[330135856,1719036029099,-237.75,0.00027534,30]
[330135857,1719036029129,-237.75,0.00027671,30]
[330135858,1719036029153,-237.75,0.00027808,30]
[330135859,1719036029180,-200.0,0.00027827,120]
[330135860,1719036029205,-237.75,0.00027945,30]
[330135861,1719036029231,-250.0,0.00028,30]
[330135862,1719036029256,-1724.9445409,0.00028,30]
[330135863,1719036029281,-237.75,0.00028082,30]
[330135864,1719036029306,-237.75,0.00028219,30]
[330135865,1719036029332,-151.52084922,0.00028297,120]
[330135866,1719036029361,-237.75,0.00028356,30]
[330135867,1719036029392,-237.75,0.00028493,30]
[330135868,1719036029420,-237.75,0.0002863,30]
[330135869,1719036029446,-237.75,0.00028767,30]
[330135870,1719036029471,-200.0,0.00028903,120]
[330135871,1719036029495,-237.75,0.00028904,30]
[330135872,1719036029521,-1270.66653476,0.00029016,30]
[330135873,1719036029554,-237.75,0.00029041,30]
[330135874,1719036029579,-237.75,0.00029178,30]
[330135875,1719036029605,-237.75,0.00029315,30]
[330135876,1719036029635,-237.75,0.00029452,30]
[330135877,1719036029659,-237.75,0.00029589,30]
[330135878,1719036029684,-237.75,0.00029726,30]
[330135879,1719036029708,-237.75,0.00029863,30]
[330135880,1719036029732,-200.0,0.0002998,120]
[330135881,1719036029756,-237.75,0.00029999,30]
[330135882,1719036029781,-212.52062731,0.0003,30]
[330135883,1719036029804,-250.0,0.0003,30]
[330135884,1719036029828,-250.0,0.0003,30]
[330135885,1719036029851,-250.0,0.0003,30]
[330135886,1719036029878,-260.0,0.0003,30]
[330135887,1719036029901,-152.0,0.0003,60]
[330135888,1719036029926,-1403.97680355,0.0003,60]
[330135889,1719036029950,-237.75,0.00030136,30]
[330135890,1719036029974,-200.0,0.00030137,60]
[330135891,1719036029998,-237.75,0.00030273,30]
[330135892,1719036030023,-200.0,0.00030381,120]
[330135893,1719036030048,-237.75,0.0003041,30]
[330135894,1719036030072,-313.25274355,0.00030464,120]
[330135895,1719036030096,-150.0,0.00030506,120]
[330135896,1719036030121,-237.87570511,0.00030547,30]
[330135897,1719036030144,-250.0,0.000308,30]
[330135898,1719036030168,-200.0,0.00030859,120]
[330135899,1719036030193,-200.0,0.00031057,120]
[330135900,1719036030218,-200.0,0.00031337,120]
[330135901,1719036030244,-2416.0,0.00031343,120]
[330135902,1719036030269,-200.0,0.00031815,120]
[330135903,1719036030297,-261.115284,0.00032133,120]
[330135904,1719036030323,-261.35031852,0.00032393,40]
[330135905,1719036030353,-486.8879635,0.00032876,30]
[330135906,1719036030386,-200.0,0.00032877,60]
[330135907,1719036030412,-161.97766407,0.00033,30]
[330135908,1719036030439,-159.09153235,0.00033,120]
[330135909,1719036030465,-184.01,0.00033151,120]
[330135910,1719036030490,-200.0,0.00033239,120]
[330135911,1719036030520,-157.63,0.000335,31]
[330135912,1719036030544,-157.63,0.000335,31]
[330135913,1719036030571,-150.0,0.00033975,120]
[330135914,1719036030596,-150.0,0.00034089,120]
[330135915,1719036030620,-200.0,0.00034664,120]
[330135916,1719036030645,-493.98391854,0.00035,30]
[330135917,1719036030668,-217.95124268,0.00035,120]
[330135918,1719036030693,-280.31429098,0.00035,30]
[330135919,1719036030718,-200.0,0.00035616,60]
[330135920,1719036030746,-202.986848,0.00036088,120]
[330135921,1719036030772,-157.63,0.000363,31]
[330135922,1719036030798,-157.63,0.000363,31]
[330135923,1719036030824,-155.0,0.00038355,90]
[330135924,1719036030847,-200.0,0.00038356,60]
[330135925,1719036030874,-157.63,0.000391,31]
[330135926,1719036030901,-157.63,0.000391,31]
[330135927,1719036030926,-150.0,0.00039488,120]
[330135928,1719036030949,-182.63330026,0.000395,30]
[330135929,1719036030975,-300.0,0.00039752,120]
[330135930,1719036031171,-274.24418937,0.0003985,30]
[330135931,1719036031196,-3000.0,0.000399,30]
[330135932,1719036031223,-3509.78624267,0.00039998,60]
[330135933,1719036031248,-2510.02,0.0004,30]
[330135934,1719036031271,-28168.92003052,0.0004,30]
[330135935,1719036031295,-477.12749073,0.0004,30]
[330135936,1719036031319,-443.06858192,0.0004,30]
[330135937,1719036031347,-277.94639267,0.0004,30]
[330135938,1719036031372,-410.0,0.0004,30]
[330135939,1719036031397,-345.35787498,0.0004,120]
[330135940,1719036031422,-162.49791812,0.0004,30]
[330135941,1719036031448,-337.42,0.0004,120]
[330135942,1719036031473,-164.77,0.00040639,120]
[330135943,1719036031498,-1070.656206,0.000408,30]
[330135944,1719036031524,-175.15914771,0.000409,120]
[330135945,1719036031549,-451.72406468,0.00041,120]
[330135946,1719036031576,-2468.46728962,0.00041,30]
[330135947,1719036031600,-3000.0,0.00041,90]
[330135948,1719036031623,-510.0,0.00041095,120]
[330135949,1719036031649,-200.0,0.00041096,60]
[330135950,1719036031675,-152.0,0.00041337,31]
[330135951,1719036031700,-510.0,0.00041369,120]
[330135952,1719036031727,-300.0,0.00041506,120]
[330135953,1719036031753,-150.0,0.00041512,120]
[330135954,1719036031778,-510.0,0.00041643,120]
[330135955,1719036031802,-500.0,0.00041643,30]
[330135956,1719036031827,-346.9739997,0.0004182,120]
[330135957,1719036031853,-152.0,0.00041836,31]
[330135958,1719036031877,-510.0,0.00041917,120]
[330135959,1719036031902,-292.1490324,0.00042,120]
[330135960,1719036031928,-3218.16607273,0.00042,120]
[330135961,1719036031956,-3000.0,0.00042,95]
[330135962,1719036031984,-157.63,0.00042,31]
[330135963,1719036032013,-157.63,0.00042,31]
[330135964,1719036032039,-212.50217588,0.00042191,120]
[330135965,1719036032066,-500.0,0.00042191,30]
[330135966,1719036032090,-1039.0,0.00042281,30]
[330135967,1719036032117,-3432.72656893,0.000425,30]
[330135968,1719036032143,-500.0,0.00042739,30]
[330135969,1719036032167,-191.5642028,0.0004288,120]
[330135970,1719036032192,-458306.85842269,0.000429,30]
[330135971,1719036032218,-150.0,0.00042968,120]
[330135972,1719036032242,-3000.0,0.0004299,60]
[330135973,1719036032266,-2024.0,0.00042995,94]
[330135974,1719036032291,-3000.0,0.00043,100]
[330135975,1719036032314,-1076.0,0.00043,120]
[330135976,1719036032344,-201.32112741,0.0004302,120]
[330135977,1719036032375,-300.0,0.0004326,120]
[330135978,1719036032400,-500.0,0.00043287,30]
[330135979,1719036032430,-3407.91400852,0.000436,120]
[330135980,1719036032455,-2000.0,0.00043781,30]
[330135981,1719036032479,-311.59993027,0.000438,120]
[330135982,1719036032505,-464.63134271,0.000438,30]
[330135983,1719036032530,-484.04309827,0.000438,120]
[330135984,1719036032554,-500.0,0.00043835,120]
[330135985,1719036032580,-500.0,0.00043835,120]
[330135986,1719036032604,-500.0,0.00043835,120]
[330135987,1719036032631,-500.0,0.00043835,120]
[330135988,1719036032657,-500.0,0.00043835,120]
[330135989,1719036032683,-500.0,0.00043835,120]
[330135990,1719036032711,-342.05014218,0.00043835,120]
[330135991,1719036032737,-500.0,0.00043835,120]
[330135992,1719036032762,-497.53898589,0.00043835,120]
[330135993,1719036032791,-500.0,0.00043835,120]
[330135994,1719036032816,-559.84577588,0.00043835,120]
[330135995,1719036032843,-571.46,0.00043835,120]
[330135996,1719036032869,-500.0,0.00043835,120]
[330135997,1719036032900,-562.12,0.00043835,120]
[330135998,1719036032929,-500.0,0.00043835,120]
[330135999,1719036032956,-500.0,0.00043835,120]
[330136000,1719036032983,-513.50584864,0.00043835,120]
[330136001,1719036033010,-500.0,0.00043835,120]
[330136002,1719036033038,-500.0,0.00043835,120]
[330136003,1719036033068,-500.0,0.00043835,120]
[330136004,1719036033095,-500.0,0.00043835,120]
[330136005,1719036033122,-779.97,0.00043835,120]
[330136006,1719036033147,-500.0,0.00043835,120]
[330136007,1719036033171,-603.25,0.00043835,120]
[330136008,1719036033196,-500.0,0.00043835,120]
[330136009,1719036033221,-577.16,0.00043835,120]
[330136010,1719036033246,-500.0,0.00043835,120]
[330136011,1719036033271,-1153.1,0.00043835,120]
[330136012,1719036033298,-500.0,0.00043835,120]
[330136013,1719036033327,-500.0,0.00043835,120]
[330136014,1719036033689,-1000.0,0.00043835,120]
[330136015,1719036033715,-500.0,0.00043835,120]
[330136016,1719036033739,-500.0,0.00043835,120]
[330136017,1719036033767,-1041.84,0.00043835,120]
[330136018,1719036033797,-500.0,0.00043835,120]
[330136019,1719036033822,-500.0,0.00043835,120]
[330136020,1719036033849,-500.0,0.00043835,120]
[330136021,1719036033876,-500.0,0.00043835,120]
[330136022,1719036033902,-500.0,0.00043835,120]
[330136023,1719036033930,-500.0,0.00043835,120]
[330136024,1719036033957,-500.0,0.00043835,120]
[330136025,1719036033984,-1107.44,0.00043835,120]
[330136026,1719036034009,-500.0,0.00043835,120]
[330136027,1719036034034,-500.0,0.00043835,120]
[330136028,1719036034060,-500.0,0.00043835,120]
[330136029,1719036034086,-500.0,0.00043835,120]
[330136030,1719036034111,-566.32,0.00043835,120]
[330136031,1719036034137,-500.0,0.00043835,120]
[330136032,1719036034162,-500.0,0.00043835,120]
[330136033,1719036034187,-525.10436306,0.00043835,120]
[330136034,1719036034211,-500.0,0.00043835,120]
[330136035,1719036034235,-5000.0,0.00043835,120]
[330136036,1719036034260,-609.88,0.00043835,120]
[330136037,1719036034288,-656.18,0.00043835,120]
[330136038,1719036034312,-500.0,0.00043835,120]
[330136039,1719036034337,-500.0,0.00043835,120]
[330136040,1719036034365,-500.0,0.00043835,120]
[330136041,1719036034391,-500.0,0.00043835,120]
[330136042,1719036034418,-500.0,0.00043835,120]
[330136043,1719036034444,-500.0,0.00043835,120]
[330136044,1719036034472,-500.0,0.00043835,120]
[330136045,1719036034497,-667.5,0.00043835,120]
[330136046,1719036034521,-500.0,0.00043835,120]
[330136047,1719036034546,-678.47,0.00043835,120]
[330136048,1719036034570,-500.0,0.00043835,120]
[330136049,1719036034594,-500.0,0.00043835,120]
[330136050,1719036034619,-500.0,0.00043835,120]
[330136051,1719036034646,-627.7,0.00043835,120]
[330136052,1719036034671,-500.0,0.00043835,120]
[330136053,1719036034695,-500.0,0.00043835,120]
[330136054,1719036034719,-514.24317537,0.00043835,120]
[330136055,1719036034743,-732.49,0.00043835,120]
[330136056,1719036034768,-500.0,0.00043835,120]
[330136057,1719036034793,-618.67,0.00043835,120]
[330136058,1719036034818,-500.0,0.00043835,120]
[330136059,1719036034844,-500.0,0.00043835,120]
[330136060,1719036034871,-793.16,0.00043835,120]
[330136061,1719036034896,-527.41364898,0.00043835,120]
[330136062,1719036034925,-877.73155758,0.00043835,120]
[330136063,1719036034952,-500.0,0.00043835,120]
[330136064,1719036034978,-471.15508796,0.00043835,120]
[330136065,1719036035004,-226.48056294,0.00043835,120]
[330136066,1719036035032,-500.0,0.00043835,120]
[330136067,1719036035057,-250.0,0.00043835,120]
[330136068,1719036035082,-500.0,0.00043835,120]
[330136069,1719036035107,-883.9,0.00043835,120]
[330136070,1719036035133,-500.0,0.00043835,120]
[330136071,1719036035159,-518.78,0.00043835,120]
[330136072,1719036035185,-1500.0,0.00043835,120]
[330136073,1719036035210,-500.0,0.00043835,120]
[330136074,1719036035236,-500.0,0.00043835,120]
[330136075,1719036035262,-500.0,0.00043835,120]
[330136076,1719036035288,-500.0,0.00043835,120]
[330136077,1719036035313,-500.0,0.00043835,120]
[330136078,1719036035343,-500.0,0.00043835,120]
[330136079,1719036035367,-500.0,0.00043835,120]
[330136080,1719036035393,-500.0,0.00043835,120]
[330136081,1719036035419,-500.0,0.00043835,120]
[330136082,1719036035443,-587.47,0.00043835,120]
[330136083,1719036035468,-559.75,0.00043835,120]
[330136084,1719036035496,-500.0,0.00043835,120]
[330136085,1719036035521,-500.0,0.00043835,120]
[330136086,1719036035631,-500.0,0.00043835,120]
[330136087,1719036035660,-618.11,0.00043835,120]
[330136088,1719036035684,-500.0,0.00043835,120]
[330136089,1719036035708,-165.8424014,0.00043835,120]
[330136090,1719036035732,-500.0,0.00043835,120]
[330136091,1719036035756,-500.0,0.00043835,120]
[330136092,1719036035780,-940.47,0.00043835,120]
[330136093,1719036035807,-852.23,0.00043835,120]
[330136094,1719036035835,-522.80984445,0.00043835,120]
[330136095,1719036035862,-500.0,0.00043835,120]
[330136096,1719036035891,-500.0,0.00043835,120]
[330136097,1719036035917,-500.0,0.00043835,120]
[330136098,1719036035947,-500.0,0.00043835,120]
[330136099,1719036035973,-724.77,0.00043835,120]
[330136100,1719036036001,-500.0,0.00043835,120]
[330136101,1719036036029,-500.0,0.00043835,120]
[330136102,1719036036057,-500.0,0.00043835,120]
[330136103,1719036036085,-500.0,0.00043835,120]
[330136104,1719036036112,-500.0,0.00043835,120]
[330136105,1719036036138,-500.0,0.00043835,120]
[330136106,1719036036163,-500.0,0.00043835,120]
[330136107,1719036036189,-500.0,0.00043835,120]
[330136108,1719036036216,-500.0,0.00043835,120]
[330136109,1719036036240,-500.0,0.00043835,120]
[330136110,1719036036264,-500.0,0.00043835,120]
[330136111,1719036036289,-500.0,0.00043835,120]
[330136112,1719036036315,-500.0,0.00043835,120]
[330136113,1719036036340,-500.0,0.00043835,120]
[330136114,1719036036369,-500.0,0.00043835,120]